Workbook

Sheet Sheet1
D1: Eigenvalues of the Powers
D2: of a Matrix
D4: This DIGMath module explores
D5: the eigenvalues for the powers
D6: of a 2-by-2 matrix
A10: Define a non-singular matrix A = | E10: using the sliders below:
E12: =D16 -> 2.7 | F12: =D19 -> 1
E13: =D22 -> 4 | F13: =D25 -> 2
D14: =IF(a*d-b*cc=0," This matrix is singular !","") -> 
A15: Enter the value for a (-5 to 5):
C16: a = | D16: =(F16-50)/10 -> 2.7 | E16: 62 | F16: 77
J17: ="The matrix A has "&IF(Disc>0,"two distinct eigenvalues",IF(Disc=0,"a double real eigenvalue","a pair of complex eigenvalues")) -> The matrix A has two distinct eigenvalues | R17: ="The matrix A^2 has "&IF(Disc00>0,"two distinct eigenvalues",IF(Disc00=0,"a double real eigenvalue","a pair of complex eigenvalues")) -> The matrix A^2 has two distinct eigenvalues | Y17: ="The matrix A^3 has "&IF(Disc000>0,"two distinct eigenvalues",IF(Disc000=0,"a double real eigenvalue","a pair of complex eigenvalues")) -> The matrix A^3 has two distinct eigenvalues
A18: Enter the value for b (-5 to 5): | K18: l1 = | L18: =IF(Disc01>0,lambda01,IF(Disc01=0,lambda03,alpha05)) -> 4.38 | M18: =IF(AND(Disc<0,beta5>0)," + ",IF(AND(Disc<0,beta5<0)," - ","")) ->  | N18: =IF(Disc>=0,"",ABS(beta5)) ->  | O18: =IF(Disc<0,"i","") ->  | S18: l1 = | T18: =IF(Disc00>0,lambda001,IF(Disc00=0,lambda003,alpha005)) -> 19.19 | U18: =IF(AND(Disc<0,beta5>0)," + ",IF(AND(Disc<0,beta5<0)," - ","")) ->  | V18: =IF(Disc>=0,"",ABS(beta5)) ->  | Z18: l1 = | AA18: =IF(Disc000>0,lambda0001,IF(Disc000=0,lambda0003,alpha0005)) -> 84.05
C19: b = | D19: =(F19-50)/10 -> 1 | E19: 62 | F19: 60 | K19: l2 = | L19: =IF(Disc01>0,lambda02,IF(Disc01=0,lambda04,alpha06)) -> 0.32 | M19: =IF(AND(Disc<0,beta6>0)," + ",IF(AND(Disc<0,beta6<0)," - ","")) ->  | N19: =IF(Disc>=0,"",ABS(beta6)) ->  | O19: =IF(Disc<0,"i","") ->  | S19: l2 = | T19: =IF(Disc00>0,lambda002,IF(Disc00=0,lambda004,alpha006)) -> 0.10 | U19: =IF(AND(Disc<0,beta6>0)," + ",IF(AND(Disc<0,beta6<0)," - ","")) ->  | V19: =IF(Disc>=0,"",ABS(beta6)) ->  | Z19: l2 = | AA19: =IF(Disc000>0,lambda0002,IF(Disx000=0,lambda0004,alpha0006)) -> 0.03
A21: Enter the value for c (-5 to 5): | J21: The characteristic equation for A is | R21: The characteristic equation for A^2 is | Y21: The characteristic equation for A^3 is
C22: c = | D22: =(F22-50)/10 -> 4 | E22: 62 | F22: 90 | K22: l2 | L22: =IF(a0+d0 <=0," + "," - ") -> - | M22: =ABS(a0+d0)&"l" -> 4.7l | N22: =IF(a0*d0 -b0*c0 >=0," + "," - ") & TEXT(ABS(a0*d0-b0*c0),"0.0")&" = 0" -> + 1.4 = 0 | S22: l2 | T22: =IF(a00+d00 <=0," + "," - ") -> - | U22: =ABS(a00+d00)&"l" -> 19.29l | V22: =IF(a00*d00 -b00*c00 >=0," + "," - ") & TEXT(ABS(a00*d00-b00*c00),"0.00")&" = 0" -> + 1.96 = 0 | Y22: l2 | Z22: =IF(a000+d000 <=0," + "," - ") -> - | AA22: =ABS(a000+d000)&"l" -> 84.083l | AB22: =IF(a000*d000 -b000*c000 >=0," + "," - ") & TEXT(ABS(a000*d000-b000*c000),"0.00")&" = 0" -> + 2.74 = 0
J23: The discriminant = | M23: =Disc01 -> 16.49 | R23: The discriminant = | V23: =Disc00 -> 364.26 | Y23: The discriminant = | AB23: =Disc000 -> 7058.97
A24: Enter the value for d (-5 to 5):
C25: d = | D25: =(F25-50)/10 -> 2 | E25: 62 | F25: 70 | J25: The associated eigenvectors are | R25: The associated eigenvectors are | Y25: The associated eigenvectors are
K27: E1 = | L27: =IF(Disc<0,(TEXT(Sheet2!B31,"0.00")&IF(_EEE1>0," + "," - ")&TEXT(ABS(_EEE1),"0.00"))&"i",x0) -> 1 | O27: E2 = | P27: =IF(Disc<0,(TEXT(Sheet2!B34,"0.00")&IF(_EEE2>0," + "," - ")&TEXT(ABS(_EEE2),"0.00")&"i"),x00) -> 1
A28: Next, select a small variation x for c and d | L28: =IF(Disc<0,(TEXT(Sheet2!B32,"0.00")&IF(_FFF1>0," + "," - ")&TEXT(ABS(_FFF1),"0.00")&"i"),TEXT(y0,"0.00")) -> 1.68 | P28: =IF(Disc<0,(TEXT(Sheet2!H32,"0.00")&IF(_FFF2>0," + "," - ")&TEXT(ABS(_FFF2),"0.00")&"i"),TEXT(y00,"0.00")) -> -2.38
C29: x = | D29: =(F29-100)/100 -> 0.26 | E29: 62 | F29: 126
A31: The nearly singular matrix is:
E32: =a -> 2.7 | F32: =b -> 1 | J32: =MINVERSE(E32:F33) -> 1.23 | K32: -0.542888165
E33: =cc+xx0 -> 4.26 | F33: =d+xx0 -> 2.26 | J33: -2.31 | K33: 1.465798046
A36: Click each item below for suggestions and investigations
D37: Item 1
D38: Item 2
D39: Item 3
D40: Item 4
A46: To access/download all the DIGMath Apps for Differential Equations and Matrix Algebra
A47: Click this link: | D47: https://we-dig-math.org/dynamic-differential-equations.html
A49: Created by: Sheldon P. Gordon
A50: Farmingdale State College
A51: Development of this module was supported by the
A52: NSF's Division of Undergraduate Education
A53: under grants DUE-0310123 and DUE-0442160.

Sheet Sheet2
A1: =Sheet1!E12 -> 2.7 | B1: 2 | D1: plotting points: | F1: 0 | G1: 0 | J1: 0 | K1: 0 | M1: =ax -> 2.7 | N1: =bx -> 1 | P1: plotting points: | R1: 0 | S1: 0 | U1: 0 | V1: 0 | X1: A = | Y1: =Sheet1!E12:F13 -> 2.7 | Z1: 1 | AE1: graphing points
A2: =Sheet1!E13 -> 4 | B2: =Sheet1!F13 -> 2 | F2: =IF(Disc>=0,x0,0) -> 1 | G2: =IF(Disc>=0,y0,0) -> 1.68039405 | J2: =IF(Disc>=0,x00,0) -> 1 | K2: =IF(Disc>=0,y00,0) -> -2.38039405 | M2: =cx -> 4.26 | N2: =dx -> 2.26 | R2: =IF(Discx>=0,xx0,0) -> 0.26 | S2: =IF(Discx>=0,y0,0) -> 1.68039405 | U2: =IF(Disc>=0,x00,0) -> 1 | V2: =IF(Disc>=0,y00,0) -> -2.38039405 | Y2: 4 | Z2: 2 | AE2: x | AF2: y
X3: Disc = | Y3: =(a0+d0)^2-4*(a0*d0-b0*c0) -> 16.49 | AA3: l = | AB3: =eigVal(_xlfn.ANCHORARRAY(Y1)) ->  | AE3: =IF(Disc01>0,(lambda01+lambda02)/2-3,IF(Disc01=0,lambda03-2,(a0+b0)/2-2)) -> -0.65 | AF3: =AE3^2-(a0+d0)*AE3+(a0*d0-b0*c0) -> 4.8775
A4: Disc = | B4: =(a+d)^2-4*(a*d-b*cc) -> 16.49 | D4: vector points | F4: 0 | G4: =G1 -> 0 | M4: Disc = | N4: =(ax+dx)^2-4*(ax*dx-bx*cx) -> 17.2336 | P4: vector points | R4: 0 | S4: =S1 -> 0 | AE4: =IF(Disc01>0,(lambda02+lambda01)/2+3,IF(Disc01=0,lambda03+2,(a0+b0)/2+2)) -> 5.35 | AF4: 4.8775
F5: 0 | G5: =G2 -> 1.68039405 | R5: 0 | S5: =S2 -> 1.68039405 | W5: D > 0 | X5: lambda1 = | Y5: =IF(Disc01>0,((a0+d0+SQRT(Disc))/2),"") -> 4.380 | AE5: =(AE3+AE4)/2 -> 2.35 | AF5: -4.1225
A6: D > 0 | M6: D > 0 | X6: lambda2 = | Y6: =IF(Disc01>0,((a0+d0-SQRT(Disc01))/2),"") -> 0.320 | AE6: =IF(Disc01>0,lambda01,IF(Disc01=0,lambda03,"")) -> 4.38039405 | AF6: 1.776356839e-15
A7: lambda1 = | B7: =IF(Disc>0,((a+d+SQRT(Disc))/2),"") -> 4.380 | F7: theta0 = | G7: =ATAN((G2-G1)/(F2-F1)) -> 1.033988656 | I7: =F2-F1 -> 1 | M7: lambdax1 = | N7: =IF(Discx>0,((ax+dx+SQRT(Discx))/2),"") -> 4.556 | R7: theta0 = | S7: =ATAN((S2-S1)/(R2-R1)) -> 1.417287987 | U7: =R2-R1 -> 0.26 | W7: eigenvects: | X7: =IF(b0<>0,1,IF(AND(b0=0,c0<>0),(lambda01-d0)/c0,IF(AND(b0=0,c0=0),0,""))) -> 1 | Y7: =IF(b0<>0,1,IF(AND(b0=0,c0<>0),(lambda02-d0)/c0,IF(AND(b0=0,c0=0),0,""))) -> 1 | AE7: =IF(Disc01>0,lambda01,IF(Disc01=0,lambda04,"")) -> 4.38039405 | AF7: 1.776356839e-15
A8: lambda2 = | B8: =IF(Disc>0,((a+d-SQRT(Disc))/2),"") -> 0.320 | F8: theta1 = | G8: =ATAN((K2-K1)/(J2-J1)) -> -1.173084597 | I8: =J2-J1 -> 1 | M8: lambdax2 = | N8: =IF(Discx>0,((ax+dx-SQRT(Discx))/2),"") -> 0.404 | R8: theta1 = | S8: =ATAN((V2-V1)/(U2-U1)) -> -1.173084597 | U8: =U2-U1 -> 1 | X8: =IF(b0<>0,(lambda01-a0)/b0,IF(AND(b0=0,c0<>0),1,IF(AND(b0=0,c0=0),0,""))) -> 1.68039405 | Y8: =IF(b0<>0,(lambda02-a0)/b0,IF(AND(b0=0,c0<>0),1,IF(AND(b0=0,c0=0),0,""))) -> -2.380 | AE8: =IF(Disc01>0,lambda02,IF(Disc01=0,lambda04,"")) -> 0.3196059496 | AF8: 0
W9: D = 0 | X9: lambda3 = | Y9: =IF(Disc01=0,((a0+d0)/2),"") -> 
A10: eigenvectors: | M10: eigenvectors: | X10: lambda4 = | Y10: =IF(Disc01=0,((a0+d0)/2),"") -> 
B11: =IF(b<>0,1,IF(AND(b=0,cc<>0),(lambda1-d)/cc,IF(AND(b=0,cc=0),0,""))) -> 1 | C11: =IF(b<>0,1,IF(AND(b=0,cc<>0),(lambda2-d)/cc,IF(AND(b=0,cc=0),0,""))) -> 1 | N11: =IF(bx<>0,1,IF(AND(bx=0,cx<>0),(lambdax1-dx)/cx,IF(AND(bx=0,cx=0),0,""))) -> 1 | O11: =IF(bx<>0,1,IF(AND(bx=0,cx<>0),(lambdax2-d)/cx,IF(AND(bx=0,cx=0),0,""))) -> 1 | W11: eigenvects: | X11: =IF(b0<>0,1,IF(AND(b0=0,c0<>0),(lambda03-d0)/c0,IF(AND(b0=0,c0=0),0))) -> 1 | Y11: =IF(b0<>0,1,IF(AND(b0=0,c0<>0),(lambda04-d0)/c0,IF(AND(b0=0,c0=0),0))) -> 1
B12: =IF(b<>0,(lambda1-a)/b,IF(AND(b=0,cc<>0),1,IF(AND(b=0,cc=0),0,""))) -> 1.680 | C12: =IF(b<>0,(lambda2-a)/b,IF(AND(b=0,cc<>0),1,IF(AND(b=0,cc=0),0,""))) -> -2.380 | N12: =IF(bx<>0,(lambdax1-ax)/bx,IF(AND(bx=0,cx<>0),1,IF(AND(bx=0,cx=0),0,""))) -> 1.856 | O12: =IF(bx<>0,(lambdax2-ax)/bx,IF(AND(bx=0,cx<>0),1,IF(AND(bx=0,cx=0),0,""))) -> -2.296 | X12: =IF(b0<>0,(lambda03-a0)/b0,IF(AND(b0=0,c0<>0),1,IF(AND(b0=0,c0=0),0,""))) ->  | Y12: =IF(b0<>0,(lambda04-a0)/b0,IF(AND(b0=0,c0<>0),1,IF(AND(b0=0,c0=0),0,""))) ->  | AE12: x | AF12: y
W13: D < 0 | X13: lambda5 = | Y13: =(a0+d0)/2 -> 2.35 | Z13: =IF(Disc01<0,SQRT(-Disc01)/2,"") ->  | AA13: i | AE13: =IF(Disc00>0,(lambda001+lambda002)/2-3,IF(Disc00=0,lambda003-2,(a00+b00)/2-2)) -> 6.645 | AF13: =AE13^2-(a00+d00)*AE13+(a00*d00-b00*c00) -> -82.066025
X14: lambda6 = | Y14: =(a0+d0)/2 -> 2.35 | Z14: =IF(Disc01<0,-SQRT(-Disc01)/2,"") ->  | AA14: i | AE14: =IF(Disc00>0,(lambda002+lambda001)/2+3,IF(Disc00=0,lambda003+2,(a00+b00)/2+2)) -> 12.645 | AF14: -82.066025
W15: eigenvects: | X15: =IF(b0<>0,1,IF(AND(b0=0,c0<>0),(alpha05-d0)/c0,IF(AND(b0=0,c0=0),0))) -> 1 | Y15: =IF(b0<>0,0,IF(AND(b0=0,c0<>0),beta05/c0,IF(AND(b0=0,c0=0),0))) -> 0 | Z15: i | AE15: =(AE13+AE14)/2 -> 9.645 | AF15: -91.066025
A16: D = 0 | M16: D = 0 | X16: =IF(b0<>0,(alpha5-a0)/b0,IF(AND(b0=0,c0<>0),1,IF(AND(b0=0,c0=0),0))) -> -0.35 | Y16: =IF(b0<>0,beta05/b0,IF(AND(b0=0,c0<>0),0,IF(AND(b0=0,c0=0),0))) ->  | Z16: i | AE16: =IF(Disc00>0,lambda001,IF(Disc00=0,lambda003,"")) -> 19.18785204 | AF16: 1.421085472e-14
A17: lambda3 = | B17: =IF(Disc=0,((a+d)/2),"") ->  | G17: x0 = | H17: =IF(Disc>0,B11,IF(Disc=0,B21,B31)) -> 1 | J17: =IF(Disc>0,C11,IF(Disc=0,C21,C31)) -> 1 | M17: lambdax3 = | N17: =IF(Discx=0,((ax+dx)/2),"") ->  | S17: x0 = | T17: =IF(Disc>0,N11,IF(Disc=0,N21,N31)) -> 1 | V17: =IF(Disc>0,O11,IF(Disc=0,O21,O31)) -> 1 | AE17: =IF(Disc00>0,lambda001,IF(Disc00=0,lambda004,"")) -> 19.18785204 | AF17: 1.421085472e-14
A18: lambda4 = | B18: =IF(Disc=0,((a+d)/2),"") ->  | G18: y0 = | H18: =IF(Disc>0,B12,IF(Disc=0,B22,B32)) -> 1.68 | J18: =IF(Disc>0,C12,IF(Disc=0,C22,C32)) -> -2.38 | M18: lambdax4 = | N18: =IF(Discx=0,((ax+dx)/2),"") ->  | S18: y0 = | T18: =IF(Disc>0,N12,IF(Disc=0,N22,N32)) -> 1.86 | V18: =IF(Disc>0,O12,IF(Disc=0,O22,O32)) -> -2.30 | AE18: =IF(Disc00>0,lambda002,IF(Disc00=0,lambda004,"")) -> 0.102147963 | AF18: 1.243449788e-14
X19: A2 = | Y19: =MMULT(_xlfn.ANCHORARRAY(Y1),_xlfn.ANCHORARRAY(Y1)) -> 11.29 | Z19: 4.7
A20: eigenvectors: | M20: eigenvectors: | Y20: 18.8 | Z20: 8
B21: =IF(b<>0,1,IF(AND(b=0,cc<>0),(lambda3-d)/cc,IF(AND(b=0,cc=0),0))) -> 1 | C21: =IF(b<>0,1,IF(AND(b=0,cc<>0),(lambda4-d)/cc,IF(AND(b=0,cc=0),0))) -> 1 | M21: ??? | N21: =IF(bx<>0,1,IF(AND(bx=0,cx<>0),(lambdax3-dx)/cx,IF(AND(bx=0,cx=0),0))) -> 1 | O21: =IF(bx<>0,1,IF(AND(bx=0,cx<>0),(lambdax4-dx)/cx,IF(AND(bx=0,cx=0),0))) -> 1 | X21: Disc = | Y21: =(a00+d00)^2-4*(a00*d00-b00*c00) -> 364.2641 | AE21: x | AF21: y
B22: =IF(b<>0,(lambda3-a)/b,IF(AND(b=0,cc<>0),1,IF(AND(b=0,cc=0),0,""))) ->  | C22: =IF(b<>0,(lambda4-a)/b,IF(AND(b=0,cc<>0),1,IF(AND(b=0,cc=0),0,""))) ->  | N22: =IF(bx<>0,(lambdax3-ax)/bx,IF(AND(bx=0,cx<>0),1,IF(AND(bx=0,cx=0),0,""))) ->  | O22: =IF(bx<>0,(lambdax4-ax)/bx,IF(AND(bx=0,cx<>0),1,IF(AND(bx=0,cx=0),0,""))) ->  | R22: =lambdax3 ->  | AE22: =IF(Disc000>0,(lambda0001+lambda0002)/2-3,IF(Disc000=0,lambda0003-2,(a000+b000)/2-2)) -> 39.0415 | AF22: =AE22^2-(a000+d000)*AE22+(a000*d000-b000*c000) -> -1755.743722
R23: =lambdax3 ->  | W23: D > 0 | X23: lambda1 = | Y23: =IF(Disc00>0,((a00+d00+SQRT(Disc00))/2),"") -> 19.188 | AE23: =IF(Disc000>0,(lambda0002+lambda0001)/2+3,IF(Disc000=0,lambda0003+2,(a000+b000)/2+2)) -> 45.0415 | AF23: -1755.743722
X24: lambda2 = | Y24: =IF(Disc00>0,((a00+d00-SQRT(Disc00))/2),"") -> 0.102 | AE24: =(AE22+AE23)/2 -> 42.0415 | AF24: -1764.743722
W25: eigenvects: | X25: =IF(b00<>0,1,IF(AND(b00=0,c00<>0),(lambda001-d00)/c00,IF(AND(b00=0,c00=0),0,""))) -> 1 | Y25: =IF(b00<>0,1,IF(AND(b00=0,c00<>0),(lambda002-d)/c00,IF(AND(b00=0,c00=0),0,""))) -> 1 | AE25: =IF(Disc000>0,lambda0001,IF(Disc000=0,lambda0003,"")) -> 84.0503529 | AF25: 0
A26: D < 0 | M26: D < 0 | X26: =IF(b00<>0,(lambda001-a00)/b00,IF(AND(b00=0,c00<>0),1,IF(AND(b00=0,c00=0),0,""))) -> 1.68039405 | Y26: =IF(b00<>0,(lambda002-a00)/b00,IF(AND(b00=0,c00<>0),1,IF(AND(b00=0,c00=0),0,""))) -> -2.380 | AE26: =IF(Disc000>0,lambda0001,IF(Disc000=0,lambda0004,"")) -> 84.0503529 | AF26: 0
A27: lambda5 = | B27: =(a+d)/2 -> 2.35 | C27: =IF(Disc<0,SQRT(-Disc)/2,"") ->  | D27: i | M27: lambdax5 = | N27: =(ax+dx)/2 -> 2.48 | O27: =IF(Disc<0,SQRT(-Disc)/2,"") ->  | P27: i | W27: D = 0 | X27: lambda3 = | Y27: =IF(Disc00=0,((a00+d00)/2),"") ->  | AE27: =IF(Disc000>0,lambda0002,IF(Disc000=0,lambda0004,"")) -> 0.03264709671 | AF27: 1.7985613e-13
A28: lambda6 = | B28: =(a+d)/2 -> 2.35 | C28: =IF(Disc<0,-SQRT(-Disc)/2,"") ->  | D28: i | M28: lambdax6 = | N28: =(ax+dx)/2 -> 2.48 | O28: =IF(Disc<0,-SQRT(-Disc)/2,"") ->  | P28: i | X28: lambda4 = | Y28: =IF(Disc00=0,((a00+d00)/2),"") -> 
W29: eigenvects: | X29: =IF(b00<>0,1,IF(AND(b00=0,c00<>0),(lambda003-d00)/c00,IF(AND(b00=0,c00=0),0))) -> 1 | Y29: =IF(b00<>0,1,IF(AND(b00=0,c00<>0),(lambda004-d00)/c00,IF(AND(b00=0,c00=0),0))) -> 1
A30: eigenvectors: | M30: eigenvectors: | X30: =IF(b00<>0,(lambda003-a00)/b00,IF(AND(b00=0,c00<>0),1,IF(AND(b00=0,c00=0),0,""))) ->  | Y30: =IF(b00<>0,(lambda004-a00)/b00,IF(AND(b00=0,c00<>0),1,IF(AND(b00=0,c00=0),0,""))) -> 
B31: =IF(b<>0,1,IF(AND(b=0,cc<>0),(alpha5-d)/cc,IF(AND(b=0,cc=0),0))) -> 1 | C31: =IF(b<>0,0,IF(AND(b=0,cc<>0),beta5/cc,IF(AND(b=0,cc=0),0))) -> 0 | D31: i | N31: =IF(bx<>0,1,IF(AND(bx=0,cx<>0),(alphax5-dx)/cx,IF(AND(bx=0,cx=0),0))) -> 1 | O31: =IF(bx<>0,0,IF(AND(bx=0,cx<>0),betax5/cc,IF(AND(bx=0,cx=0),0))) -> 0 | P31: i | W31: D < 0 | X31: lambda5 = | Y31: =(a00+d00)/2 -> 9.645 | Z31: =IF(Disc00<0,SQRT(-Disc00)/2,"") ->  | AA31: i
B32: =IF(b<>0,(alpha5-a)/b,IF(AND(b=0,cc<>0),1,IF(AND(b=0,cc=0),0))) -> -0.35 | C32: =IF(b<>0,beta5/b,IF(AND(b=0,cc<>0),0,IF(AND(b=0,cc=0),0))) ->  | D32: i | N32: =IF(bx<>0,(alphax5-ax)/bx,IF(AND(bx=0,cx<>0),1,IF(AND(bx=0,cx=0),0))) -> -0.22 | O32: =IF(bx<>0,betax5/bx,IF(AND(bx=0,cx<>0),0,IF(AND(bx=0,cx=0),0))) -> 2.48 | P32: i | X32: lambda6 = | Y32: =(a00+d00)/2 -> 9.645 | Z32: =IF(Disc00<0,-SQRT(-Disc00)/2,"") ->  | AA32: i
W33: eigenvects: | X33: =IF(b00<>0,1,IF(AND(b00=0,c00<>0),(alpha005-d00)/c00,IF(AND(b00=0,c00=0),0))) -> 1 | Y33: =IF(b00<>0,0,IF(AND(b00=0,c00<>0),beta005/c00,IF(AND(b00=0,c00=0),0))) -> 0 | Z33: i
B34: =IF(b<>0,1,IF(AND(b=0,cc<>0),(alpha6-d)/cc,IF(AND(b=0,cc=0),0))) -> 1 | C34: =IF(b<>0,0,IF(AND(b=0,cc<>0),beta6/cc,IF(AND(b=0,cc=0),0))) -> 0 | D34: i | N34: =IF(bx<>0,1,IF(AND(bx=0,cx<>0),(alphax6-dx)/cx,IF(AND(bx=0,cx=0),0))) -> 1 | O34: =IF(bx<>0,0,IF(AND(bx=0,cx<>0),betax6/cx,IF(AND(bx=0,cx=0),0))) -> 0 | P34: i | X34: =IF(b00<>0,(alpha005-a00)/b00,IF(AND(b00=0,c00<>0),1,IF(AND(b00=0,c00=0),0))) -> -0.35 | Y34: =IF(b00<>0,beta005/b00,IF(AND(b00=0,c00<>0),0,IF(AND(b00=0,c00=0),0))) ->  | Z34: i
B35: =IF(b<>0,(alpha6-a)/b,IF(AND(b=0,cc<>0),1,IF(AND(b=0,cc=0),0))) -> -0.35 | C35: =IF(b<>0,beta6/b,IF(AND(b=0,cc<>0),0,IF(AND(b=0,cc=0),0))) ->  | D35: i | N35: =IF(bx<>0,(alphax6-ax)/bx,IF(AND(bx=0,cx<>0),1,IF(AND(bx=0,cx=0),0))) -> -0.22 | O35: =IF(bx<>0,betax6/bx,IF(AND(bx=0,cx<>0),0,IF(AND(bx=0,cx=0),0))) -> 2.48 | P35: i
X36: A3 = | Y36: =MMULT(_xlfn.ANCHORARRAY(Y1),_xlfn.ANCHORARRAY(Y19)) -> 49.283 | Z36: 20.69
Y37: 82.76 | Z37: 34.8
X38: Disc = | Y38: =(a000+d000)^2-4*(a000*d000-b000*c000) -> 7058.974889
W40: D > 0 | X40: lambda1 = | Y40: =IF(Disc000>0,((a000+d000+SQRT(Disc000))/2),"") -> 84.050
X41: lambda2 = | Y41: =IF(Disc000>0,((a000+d000-SQRT(Disc000))/2),"") -> 0.033
W42: eigenvects: | X42: =IF(b000<>0,1,IF(AND(b000=0,c000<>0),(lambda0001-d000)/c000,IF(AND(b000=0,c000=0),0,""))) -> 1 | Y42: =IF(b000<>0,1,IF(AND(b000=0,c000<>0),(lambda003-d000)/c000,IF(AND(b000=0,c000=0),0,""))) -> 1
X43: =IF(b000<>0,(lambda0001-a000)/b000,IF(AND(b000=0,c000<>0),1,IF(AND(b000=0,c000=0),0,""))) -> 1.68039405 | Y43: =IF(b000<>0,(lambda0002-a000)/b000,IF(AND(b000=0,c000<>0),1,IF(AND(b000=0,c000=0),0,""))) -> -2.380
W44: D = 0 | X44: lambda3 = | Y44: =IF(Disc000=0,((a000+d000)/2),"") -> 
X45: lambda4 = | Y45: =IF(Disc000=0,((a000+d000)/2),"") -> 
W46: eigenvects: | X46: =IF(b000<>0,1,IF(AND(b000=0,c000<>0),(lambda0003-d000)/c000,IF(AND(b000=0,c000=0),0))) -> 1 | Y46: =IF(b000<>0,1,IF(AND(b000=0,c000<>0),(lambda0004-d000)/c000,IF(AND(b000=0,c000=0),0))) -> 1
X47: =IF(b000<>0,(lambda0003-a000)/b000,IF(AND(b000=0,c000<>0),1,IF(AND(b000=0,c000=0),0,""))) ->  | Y47: =IF(b000<>0,(lambda0004-a000)/b000,IF(AND(b000=0,c000<>0),1,IF(AND(b000=0,c000=0),0,""))) -> 
W48: D < 0 | X48: lambda5 = | Y48: =(a000+d000)/2 -> 42.0415 | Z48: =IF(Disc000<0,SQRT(-Disc000)/2,"") ->  | AA48: i
X49: lambda6 = | Y49: =(a000+d000)/2 -> 42.0415 | Z49: =IF(Disc000<0,-SQRT(-Disc000)/2,"") ->  | AA49: i
W50: eigenvects: | X50: =IF(b000<>0,1,IF(AND(b000=0,c000<>0),(alpha0005-d000)/c000,IF(AND(b000=0,c000=0),0))) -> 1 | Y50: =IF(b000<>0,0,IF(AND(b000=0,c000<>0),beta0005/c000,IF(AND(b000=0,c000=0),0))) -> 0 | Z50: i
X51: =IF(b000<>0,(alpha0005-a000)/b000,IF(AND(b000=0,c000<>0),1,IF(AND(b000=0,c000=0),0))) -> -0.35 | Y51: =IF(b000<>0,beta0005/b000,IF(AND(b000=0,c000<>0),0,IF(AND(b000=0,c000=0),0))) ->  | Z51: i
X53: A4 = | Y53: =MMULT(_xlfn.ANCHORARRAY(Y1),_xlfn.ANCHORARRAY(Y36)) -> 215.8241 | Z53: 90.663
Y54: 362.652 | Z54: 152.36

Sheet Sheet3
